fUSD/lending_fUSD_20240614
["ID","MTS","AMOUNT","RATE_DAILY","PERIOD"]
[329486904,1718389883986,-500.0,0.00023013,3]
[329486905,1718389884001,-500.0,0.00023013,3]
[329486906,1718389884029,-500.0,0.00023013,3]
[329486907,1718389884042,-893.93,0.00023013,3]
[329486908,1718389884054,-525.7,0.00023013,3]
[329486909,1718389884082,-500.0,0.00023013,3]
[329486910,1718389884107,-785.49,0.00023013,3]
[329486911,1718389884118,-500.0,0.00023013,3]
[329486912,1718389884130,-986.68,0.00023013,3]
[329486913,1718389884144,-500.0,0.00023013,3]
[329486914,1718389884163,-188.97916894,0.00023013,3]
[329486915,1718389884177,-500.0,0.00023013,3]
[329486916,1718389884190,-500.0,0.00023013,3]
[329486917,1718389884204,-500.0,0.00023013,3]
[329486918,1718389884266,-500.0,0.00023013,3]
[329486919,1718389884287,-500.0,0.00023013,3]
[329486920,1718389884308,-500.0,0.00023013,3]
[329486921,1718389884321,-500.0,0.00023013,3]
[329486922,1718389884341,-184.58609655,0.00023013,3]
[329486923,1718389884356,-500.0,0.00023013,3]
[329486924,1718389884377,-500.0,0.00023013,3]
[329486925,1718389884405,-258.83320131,0.00023013,3]
[329486926,1718389884425,-500.0,0.00023013,3]
[329486927,1718389884438,-151.0,0.00023013,7]
[329486928,1718389884451,-523.77800021,0.00023013,3]
[329486929,1718389884465,-500.0,0.00023013,3]
[329486930,1718389884477,-500.0,0.00023013,3]
[329486931,1718389884499,-670.2,0.00023013,3]
[329486932,1718389884510,-500.0,0.00023013,3]
[329486933,1718389884523,-500.0,0.00023013,3]
[329486934,1718389884544,-500.0,0.00023013,3]
[329486935,1718389884555,-500.0,0.00023013,3]
[329486936,1718389884566,-500.0,0.00023013,3]
[329486937,1718389884579,-151.0,0.00023013,7]
[329486938,1718389884596,-500.0,0.00023013,3]
[329486939,1718389884608,-500.0,0.00023013,3]
[329486940,1718389884621,-500.0,0.00023013,3]
[329486941,1718389884634,-221.77542531,0.00023013,3]
[329486942,1718389884648,-500.0,0.00023013,3]
[329486943,1718389884661,-500.0,0.00023013,3]
[329486944,1718389884677,-500.0,0.00023013,3]
[329486945,1718389884694,-500.0,0.00023013,3]
[329486946,1718389884719,-500.0,0.00023013,3]
[329486947,1718389884732,-500.0,0.00023013,3]
[329486948,1718389884755,-500.0,0.00023013,3]
[329486949,1718389884767,-500.0,0.00023013,3]
[329486950,1718389884780,-500.0,0.00023013,3]
[329486951,1718389884798,-500.0,0.00023013,3]
[329486952,1718389884809,-500.0,0.00023013,3]
[329486953,1718389884856,-500.0,0.00023013,3]
[329486954,1718389884873,-500.0,0.00023013,3]
[329486955,1718389884885,-151.0,0.00023013,7]
[329486956,1718389884898,-536.45,0.00023013,3]
[329486957,1718389884911,-500.0,0.00023013,3]
[329486958,1718389884938,-151.0,0.00023013,7]
[329486959,1718389884973,-500.0,0.00023013,3]
[329486960,1718389884997,-500.0,0.00023013,3]
[329486961,1718389885012,-500.0,0.00023013,3]
[329486962,1718389885026,-500.0,0.00023013,3]
[329486963,1718389885047,-500.0,0.00023013,3]
[329486964,1718389885060,-500.0,0.00023013,3]
[329486965,1718389885087,-151.0,0.00023013,7]
[329486966,1718389885103,-633.08,0.00023013,3]
[329486967,1718389885124,-539.1,0.00023013,3]
[329486968,1718389885143,-500.0,0.00023013,3]
[329486969,1718389885161,-439.04364973,0.00023013,3]
[329486970,1718389885177,-447.64363127,0.00023013,3]
[329486971,1718389885196,-151.0,0.00023013,7]
[329486972,1718389885238,-500.0,0.00023013,3]
[329486973,1718389885261,-240.1691,0.00023013,7]
[329486974,1718389885285,-200.5278636,0.00023013,3]
[329486975,1718389885296,-500.0,0.00023013,3]
[329486976,1718389885312,-500.0,0.00023013,3]
[329486977,1718389885324,-500.0,0.00023013,3]
[329486978,1718389885361,-151.0,0.00023013,7]
[329486979,1718389885381,-500.0,0.00023013,3]
[329486980,1718389885416,-1325.69,0.00023013,3]
[329486981,1718389885427,-500.0,0.00023013,3]
[329486982,1718389885456,-151.0,0.00023013,7]
[329486983,1718389885470,-665.04,0.00023013,3]
[329486984,1718389885503,-500.0,0.00023013,3]
[329486985,1718389885541,-500.0,0.00023013,3]
[329486986,1718389885566,-500.0,0.00023013,3]
[329486987,1718389885580,-500.0,0.00023013,3]
[329486988,1718389885596,-500.0,0.00023013,3]
[329486989,1718389885614,-500.0,0.00023013,3]
[329486990,1718389885630,-500.0,0.00023013,3]
[329486991,1718389885662,-500.0,0.00023013,3]
[329486992,1718389885677,-500.0,0.00023013,3]
[329486993,1718389885698,-500.0,0.00023013,3]
[329486994,1718389885719,-151.431243,0.00023013,7]
[329486995,1718389885737,-546.10989975,0.00023013,3]
[329486996,1718389885754,-592.49,0.00023013,3]
[329486997,1718389885809,-630.8,0.00023013,3]
[329486998,1718389885820,-573.93,0.00023013,3]
[329486999,1718389885832,-500.0,0.00023013,3]
[329487000,1718389885852,-151.0,0.00023013,7]
[329487001,1718389885864,-500.0,0.00023013,3]
[329487002,1718389885875,-533.32774939,0.00023013,3]
[329487003,1718389885888,-736.46,0.00023013,3]
[329487004,1718389885901,-500.0,0.00023013,3]
[329487005,1718389885913,-625.25,0.00023013,3]
[329487006,1718389885928,-151.0,0.00023013,7]
[329487007,1718389885939,-500.0,0.00023013,3]
[329487008,1718389885952,-500.0,0.00023013,3]
[329487009,1718389885970,-500.0,0.00023013,3]
[329487010,1718389885988,-500.0,0.00023013,3]
[329487011,1718389886003,-154.507445,0.00023013,7]
[329487012,1718389886033,-500.0,0.00023013,3]
[329487013,1718389886046,-500.0,0.00023013,3]
[329487014,1718389886065,-500.0,0.00023013,3]
[329487015,1718389886081,-151.0,0.00023013,7]
[329487016,1718389886101,-539.26978846,0.00023013,3]
[329487017,1718389886116,-500.0,0.00023013,3]
[329487018,1718389886127,-151.0,0.00023013,7]
[329487019,1718389886141,-500.0,0.00023013,3]
[329487020,1718389886155,-500.0,0.00023013,3]
[329487021,1718389886166,-500.0,0.00023013,3]
[329487022,1718389886182,-500.0,0.00023013,3]
[329487023,1718389886194,-501.92880345,0.00023013,3]
[329487024,1718389886206,-500.0,0.00023013,3]
[329487025,1718389886217,-500.0,0.00023013,3]
[329487026,1718389886252,-500.0,0.00023013,3]
[329487027,1718389886265,-175.53718709,0.00023013,3]
[329487028,1718389887169,-349.43281291,0.00023013,3]
[329487029,1718389887183,-34.16718705,0.00023013,3]
[329487030,1718389887198,-465.83281295,0.00023013,3]
[329487031,1718389887211,-151.0,0.00023013,7]
[329487032,1718389887230,-151.0,0.00023013,7]
[329487033,1718389887252,-8.14718705,0.00023013,7]
[329487034,1718389887457,-500.0,0.00021917,2]
[329487035,1718389887472,-265.64856895,0.00023013,7]
[329487036,1718389887492,-500.0,0.00023013,3]
[329487037,1718389887507,-500.0,0.00023013,3]
[329487038,1718389887522,-162.51245804,0.00023013,3]
[329487039,1718389887547,-337.48754196,0.00023013,3]
[329487040,1718389887562,-275.84063915,0.00023013,3]
[329487041,1718389887580,-151.0,0.00023013,7]
[329487042,1718389887598,-440.48593436,0.00023013,3]
[329487043,1718389887612,-1099.84406564,0.00023013,3]
[329487044,1718389887626,-500.0,0.00023013,3]
[329487045,1718389887636,-105.34255527,0.00023013,3]
[329487046,1718389887974,-500.0,0.00022191,3]
[329487047,1718389888020,-500.0,0.00022465,3]
[329487048,1718389888035,-394.65744473,0.00023013,3]
[329487049,1718389888093,-638.32,0.00023013,3]
[329487050,1718389888143,-500.0,0.00023013,3]
[329487051,1718389888186,-527.41487272,0.00023013,3]
[329487052,1718389888209,-183.38512728,0.00023013,3]
[329487053,1718389888226,-514.64870315,0.00023013,3]
[329487054,1718389888249,-500.0,0.00023013,3]
[329487055,1718389888276,-500.0,0.00023013,3]
[329487056,1718389888290,-500.0,0.00023013,3]
[329487057,1718389888317,-285.18055853,0.00023013,3]
[329487058,1718389888332,-500.0,0.00023013,3]
[329487059,1718389888344,-500.0,0.00023013,3]
[329487060,1718389888357,-151.582928,0.00023013,7]
[329487061,1718389888369,-500.0,0.00023013,3]
[329487062,1718389888405,-500.0,0.00023013,3]
[329487063,1718389888426,-500.0,0.00023013,3]
[329487064,1718389888449,-500.0,0.00023013,3]
[329487065,1718389888479,-500.0,0.00023013,3]
[329487066,1718389888496,-792.27,0.00023013,3]
[329487067,1718389888508,-41.73268304,0.00023013,3]
[329487068,1718389888530,-260.87468962,0.00023013,3]
[329487069,1718389888730,-500.0,0.00022739,3]
[329487070,1718389888744,-197.39262734,0.00023013,3]
[329487071,1718389888756,-500.0,0.00023013,3]
[329487072,1718389888777,-642.27523482,0.00023013,3]
[329487073,1718389888796,-2726.63,0.00023013,3]
[329487074,1718389888817,-1044.71,0.00023013,3]
[329487075,1718389888831,-151.0,0.00023013,7]
[329487076,1718389888843,-694.54,0.00023013,3]
[329487077,1718389888859,-537.13,0.00023013,3]
[329487078,1718389888876,-166.92859344,0.00023013,3]
[329487079,1718389888887,-1944.71,0.00023013,3]
[329487080,1718389888906,-500.0,0.00023013,3]
[329487081,1718389888920,-500.0,0.00023013,3]
[329487082,1718389888931,-1028.61,0.00023013,3]
[329487083,1718389888942,-500.0,0.00023013,3]
[329487084,1718389888956,-500.0,0.00023013,3]
[329487085,1718389888981,-500.0,0.00023013,3]
[329487086,1718389889008,-2311.73,0.00023013,3]
[329487087,1718389889019,-248.49017084,0.00023013,3]
[329487088,1718389889037,-840.75982916,0.00023013,3]
[329487089,1718389889048,-1607.69,0.00023013,3]
[329487090,1718389889059,-737.12,0.00023013,3]
[329487091,1718389889072,-500.0,0.00023013,3]
[329487092,1718389889083,-2332.61,0.00023013,3]
[329487093,1718389889093,-4949.66,0.00023013,3]
[329487094,1718389889105,-500.0,0.00023013,3]
[329487095,1718389889125,-7412.39,0.00023013,3]
[329487096,1718389889141,-1264.08,0.00023013,3]
[329487097,1718389889161,-500.0,0.00023013,3]
[329487098,1718389889175,-2536.17,0.00023013,3]
[329487099,1718389889190,-3546.14,0.00023013,3]
[329487100,1718389889203,-6999.38667442,0.00023013,3]
[329487101,1718389889220,-413.22332558,0.00023013,3]
[329487102,1718389889232,-5511.69,0.00023013,3]
[329487103,1718389889265,-756.16,0.00023013,3]
[329487104,1718389889292,-1560.64,0.00023013,3]
[329487105,1718389889310,-5585.52,0.00023013,3]
[329487106,1718389889323,-500.0,0.00023013,3]
[329487107,1718389889343,-500.0,0.00023013,3]
[329487108,1718389889359,-500.0,0.00023013,3]
[329487109,1718389889390,-500.0,0.00023013,3]
[329487110,1718389889419,-613.07,0.00023013,3]
[329487111,1718389889448,-500.0,0.00023013,3]
[329487112,1718389889460,-1075.19,0.00023013,3]
[329487113,1718389889471,-500.0,0.00023013,3]
[329487114,1718389889488,-1229.17,0.00023013,3]
[329487115,1718389889501,-554.3,0.00023013,3]
[329487116,1718389889512,-500.0,0.00023013,3]
[329487117,1718389889527,-736.41,0.00023013,3]
[329487118,1718389889540,-8836.62,0.00023013,3]
[329487119,1718389889555,-549.06,0.00023013,3]
[329487120,1718389889584,-500.0,0.00023013,3]
[329487121,1718389889596,-1379.69,0.00023013,3]
[329487122,1718389889622,-500.0,0.00023013,3]
[329487123,1718389889639,-1932.08,0.00023013,3]
[329487124,1718389889655,-4335.15732481,0.00023013,3]
[329487125,1718389889674,-9602.47267519,0.00023013,3]
[329487126,1718389889697,-500.0,0.00023013,3]
[329487127,1718389889708,-10953.02,0.00023013,3]
[329487128,1718389889724,-500.0,0.00023013,3]
[329487129,1718389889757,-500.0,0.00023013,3]
[329487130,1718389889768,-1270.34,0.00023013,3]
[329487131,1718389889781,-500.0,0.00023013,3]
[329487132,1718389889841,-7246.49,0.00023013,3]
[329487133,1718389889856,-500.0,0.00023013,3]
[329487134,1718389889868,-1133.38,0.00023013,3]
[329487135,1718389889883,-1354.57,0.00023013,3]
[329487136,1718389889897,-3990.89,0.00023013,3]
[329487137,1718389889910,-379.13171984,0.00023013,3]
[329487138,1718389889924,-500.0,0.00023013,3]
[329487139,1718389889937,-636.65,0.00023013,3]
[329487140,1718389889953,-500.0,0.00023013,3]
[329487141,1718389889986,-500.0,0.00023013,3]
[329487142,1718389890014,-1215.22,0.00023013,3]
[329487143,1718389890036,-500.0,0.00023013,3]
[329487144,1718389890049,-500.0,0.00023013,3]
[329487145,1718389890064,-500.0,0.00023013,3]
[329487146,1718389890076,-1837.53,0.00023013,3]
[329487147,1718389890092,-1349.6,0.00023013,3]
[329487148,1718389890121,-2196.07,0.00023013,3]
[329487149,1718389890135,-500.0,0.00023013,3]
[329487150,1718389890170,-2501.07,0.00023013,3]
[329487151,1718389890185,-500.0,0.00023013,3]
[329487152,1718389890210,-4883.04,0.00023013,3]
[329487153,1718389890227,-711.66,0.00023013,3]
[329487154,1718389890245,-500.0,0.00023013,3]
[329487155,1718389890264,-500.0,0.00023013,3]
[329487156,1718389890277,-500.0,0.00023013,2]
[329487157,1718389890289,-658.37,0.00023013,3]
[329487158,1718389890303,-1017.78,0.00023013,3]
[329487159,1718389890320,-4507.79,0.00023013,3]
[329487160,1718389890357,-1173.46,0.00023013,3]
[329487161,1718389890375,-1838.38,0.00023013,3]
[329487162,1718389890417,-611.63,0.00023013,3]
[329487163,1718389890474,-500.0,0.00023013,3]
[329487164,1718389890498,-4134.77,0.00023013,3]
[329487165,1718389890533,-500.0,0.00023013,3]
[329487166,1718389890553,-3382.42,0.00023013,3]
[329487167,1718389890570,-500.0,0.00023013,3]
[329487168,1718389890589,-611.19,0.00023013,3]
[329487169,1718389890621,-4489.2,0.00023013,3]
[329487170,1718389890640,-502.8,0.00023013,3]
[329487171,1718389890677,-4166.83,0.00023013,3]
[329487172,1718389890697,-1595.83,0.00023013,3]
[329487173,1718389890733,-500.0,0.00023013,3]
[329487174,1718389890764,-500.0,0.00023013,3]
[329487175,1718389890791,-5328.26,0.00023013,3]
[329487176,1718389890810,-2779.11,0.00023013,3]
[329487177,1718389890831,-4572.35,0.00023013,3]
[329487178,1718389890849,-1016.46,0.00023013,3]
[329487179,1718389890863,-1949.2,0.00023013,3]
[329487180,1718389890888,-500.0,0.00023013,3]
[329487181,1718389890909,-880.74,0.00023013,3]
[329487182,1718389891096,-3544.94,0.00023013,3]
[329487183,1718389891109,-953.75,0.00023013,3]
[329487184,1718389891123,-500.0,0.00023013,3]
[329487185,1718389891145,-695.88,0.00023013,3]
[329487186,1718389891159,-447.23590049,0.00023013,3]
[329487187,1718389891177,-323.71409951,0.00023013,3]
[329487188,1718389891191,-1364.63,0.00023013,3]
[329487189,1718389891211,-1128.93,0.00023013,3]
[329487190,1718389891228,-805.44,0.00023013,3]
[329487191,1718389891247,-1046.51,0.00023013,3]
[329487192,1718389891272,-1736.76,0.00023013,3]
[329487193,1718389891329,-601.3,0.00023013,3]
[329487194,1718389891342,-3300.93,0.00023013,3]
[329487195,1718389891369,-1216.3,0.00023013,3]
[329487196,1718389891389,-500.0,0.00023013,3]
[329487197,1718389891410,-1160.29,0.00023013,3]
[329487198,1718389891432,-500.0,0.00023013,3]
[329487199,1718389891447,-644.97,0.00023013,3]
[329487200,1718389891465,-1677.17,0.00023013,3]
[329487201,1718389891496,-1549.05,0.00023013,3]
[329487202,1718389891517,-2211.66,0.00023013,3]
[329487203,1718389891528,-812.71,0.00023013,3]
[329487204,1718389891568,-2078.73,0.00023013,3]
[329487205,1718389891580,-500.0,0.00023013,3]
[329487206,1718389891602,-584.14,0.00023013,3]
[329487207,1718389891620,-617.71,0.00023013,3]
[329487208,1718389891687,-2574.5,0.00023013,3]
[329487209,1718389891705,-646.5,0.00023013,3]
[329487210,1718389891721,-500.0,0.00023013,3]
[329487211,1718389891745,-1102.49,0.00023013,3]
[329487212,1718389891767,-1827.22,0.00023013,3]
[329487213,1718389891784,-7582.02,0.00023013,3]
[329487214,1718389891815,-10937.80631745,0.00023013,3]
[329487215,1718389891868,-1459.28368255,0.00023013,3]
[329487216,1718389891912,-500.0,0.00023013,3]
[329487217,1718389891924,-560.71,0.00023013,3]
[329487218,1718389891949,-500.0,0.00023013,3]
[329487219,1718389891961,-500.0,0.00023013,3]
[329487220,1718389891973,-151.0,0.00023013,7]
[329487221,1718389891990,-11804.34,0.00023013,3]
[329487222,1718389892007,-151.0,0.00023013,7]
[329487223,1718389892019,-151.0,0.00023013,7]
[329487224,1718389892039,-500.0,0.00023013,3]
[329487225,1718389892074,-500.0,0.00023013,3]
[329487226,1718389892087,-500.0,0.00023013,3]
[329487227,1718389892115,-215.54507705,0.00023127,2]
[329487228,1718389892163,-150.0,0.00023197,2]
[329487229,1718389892176,-150.0,0.00023199,2]
[329487230,1718389892192,-190.75780564,0.00023255,2]
[329487231,1718389892205,-500.0,0.00023286,2]
[329487232,1718389892236,-1471.62,0.00023286,3]
[329487233,1718389892247,-17137.63814886,0.00023287,2]
[329487234,1718389892264,-724.11,0.00023287,3]
[329487235,1718389892275,-500.0,0.00023287,3]
[329487236,1718389892286,-500.0,0.00023287,3]
[329487237,1718389892298,-519.65776143,0.00023287,3]
[329487238,1718389892324,-500.0,0.00023287,2]
[329487239,1718389892339,-153.230179,0.00023287,7]
[329487240,1718389892350,-151.0,0.00023287,7]
[329487241,1718389892366,-500.0,0.00023287,3]
[329487242,1718389892382,-688.1,0.00023287,3]
[329487243,1718389892410,-560.85,0.00023287,3]
[329487244,1718389892431,-157.857361,0.00023287,7]
[329487245,1718389892449,-500.0,0.00023287,3]
[329487246,1718389892474,-500.0,0.00023287,3]
[329487247,1718389892494,-500.0,0.00023287,3]
[329487248,1718389892509,-500.0,0.00023287,3]
[329487249,1718389892543,-893.93,0.00023287,3]
[329487250,1718389892558,-525.7,0.00023287,3]
[329487251,1718389892572,-785.49,0.00023287,3]
[329487252,1718389892604,-511.41150641,0.00023287,3]
[329487253,1718389892632,-986.68,0.00023287,3]
[329487254,1718389892651,-500.0,0.00023287,3]
[329487255,1718389892669,-500.0,0.00023287,3]
[329487256,1718389892701,-500.0,0.00023287,3]
[329487257,1718389892718,-500.0,0.00023287,3]
[329487258,1718389892739,-500.0,0.00023287,3]
[329487259,1718389892762,-500.0,0.00023287,3]
[329487260,1718389892775,-500.0,0.00023287,3]
[329487261,1718389892787,-500.0,0.00023287,3]
[329487262,1718389892802,-500.0,0.00023287,3]
[329487263,1718389892842,-500.0,0.00023287,3]
[329487264,1718389892862,-151.0,0.00023287,7]
[329487265,1718389892875,-500.0,0.00023287,3]
[329487266,1718389892897,-500.0,0.00023287,3]
[329487267,1718389892928,-670.2,0.00023287,3]
[329487268,1718389892958,-500.0,0.00023287,3]
[329487269,1718389892971,-500.0,0.00023287,3]
[329487270,1718389892987,-500.0,0.00023287,3]
[329487271,1718389893011,-500.0,0.00023287,3]
[329487272,1718389893025,-500.0,0.00023287,3]
[329487273,1718389893038,-151.0,0.00023287,7]
[329487274,1718389893060,-500.0,0.00023287,3]
[329487275,1718389893071,-500.0,0.00023287,3]
[329487276,1718389893087,-500.0,0.00023287,3]
[329487277,1718389893112,-500.0,0.00023287,3]
[329487278,1718389893128,-359.43317694,0.00023287,3]
[329487279,1718389893181,-500.0,0.00023287,3]
[329487280,1718389893226,-500.0,0.00023287,3]
[329487281,1718389893259,-500.0,0.00023287,3]
[329487282,1718389893287,-500.0,0.00023287,3]
[329487283,1718389893307,-500.0,0.00023287,3]
[329487284,1718389893345,-500.0,0.00023287,3]
[329487285,1718389893365,-500.0,0.00023287,3]
[329487286,1718389893375,-500.0,0.00023287,3]
[329487287,1718389893386,-500.0,0.00023287,3]
[329487288,1718389893420,-514.95370007,0.00023287,3]
[329487289,1718389893432,-500.0,0.00023287,3]
[329487290,1718389893443,-251.760992,0.00023287,7]
[329487291,1718389893455,-500.0,0.00023287,3]
[329487292,1718389893466,-528.15647375,0.00023287,3]
[329487293,1718389893482,-591.6,0.00023287,3]
[329487294,1718389893494,-257.76,0.00023287,3]
[329487295,1718389893507,-337.83,0.00023287,3]
[329487296,1718389893526,-225.49980945,0.00023287,3]
[329487297,1718389893572,-633.08,0.00023287,3]
[329487298,1718389893586,-164.96350597,0.00023287,3]
[329487299,1718389893600,-500.0,0.00023287,3]
[329487300,1718389893615,-513.51626278,0.00023287,3]
[329487301,1718389893667,-500.0,0.00023287,3]
[329487302,1718389893693,-500.0,0.00023287,3]
[329487303,1718389893708,-500.0,0.00023287,3]
[329487304,1718389893719,-500.0,0.00023287,3]
[329487305,1718389893730,-665.04,0.00023287,3]
[329487306,1718389893753,-500.0,0.00023287,3]
[329487307,1718389893763,-500.0,0.00023287,3]
[329487308,1718389893803,-500.0,0.00023287,3]
[329487309,1718389893822,-500.0,0.00023287,3]
[329487310,1718389893839,-500.0,0.00023287,3]
[329487311,1718389893853,-500.0,0.00023287,3]
[329487312,1718389893866,-331.33641663,0.00023287,3]
[329487313,1718389893891,-365.36,0.00023287,3]
[329487314,1718389893918,-500.0,0.00023287,3]
[329487315,1718389893935,-500.0,0.00023287,3]
[329487316,1718389893950,-592.49,0.00023287,3]
[329487317,1718389893961,-630.8,0.00023287,3]
[329487318,1718389893972,-573.93,0.00023287,3]
[329487319,1718389893985,-500.0,0.00023287,3]
[329487320,1718389894010,-500.0,0.00023287,3]
[329487321,1718389894024,-736.46,0.00023287,3]
[329487322,1718389894037,-375.84230682,0.00023287,3]
[329487323,1718389894061,-625.25,0.00023287,3]
[329487324,1718389894071,-215.027154,0.00023287,7]
[329487325,1718389894081,-500.0,0.00023287,3]
[329487326,1718389894094,-259.55731423,0.00023287,3]
[329487327,1718389894105,-297.89586185,0.00023287,3]
[329487328,1718389894116,-500.0,0.00023287,3]
[329487329,1718389894129,-500.0,0.00023287,3]
[329487330,1718389894167,-500.0,0.00023287,3]
[329487331,1718389894189,-500.0,0.00023287,3]
[329487332,1718389894245,-500.0,0.00023287,3]
[329487333,1718389894263,-500.0,0.00023287,3]
[329487334,1718389894282,-500.0,0.00023287,3]
[329487335,1718389894326,-500.0,0.00023287,3]
[329487336,1718389894353,-500.0,0.00023287,3]
[329487337,1718389894392,-500.0,0.00023287,3]
[329487338,1718389894422,-500.0,0.00023287,3]
[329487339,1718389894450,-500.0,0.00023287,3]
[329487340,1718389894471,-524.97,0.00023287,3]
[329487341,1718389894483,-500.0,0.00023287,3]
[329487342,1718389894496,-151.0,0.00023287,7]
[329487343,1718389894524,-151.0,0.00023287,7]
[329487344,1718389894537,-500.0,0.00023287,3]
[329487345,1718389894549,-500.0,0.00023287,3]
[329487346,1718389894572,-500.0,0.00023287,3]
[329487347,1718389894589,-1540.33,0.00023287,3]
[329487348,1718389894606,-208.42102291,0.00023287,3]
[329487349,1718389894622,-291.57897709,0.00023287,3]
[329487350,1718389894644,-258.234402,0.00023287,3]
[329487351,1718389894707,-241.765598,0.00023287,3]
[329487352,1718389894717,-638.32,0.00023287,3]
[329487353,1718389894727,-500.0,0.00023287,3]
[329487354,1718389894738,-710.8,0.00023287,3]
[329487355,1718389894749,-500.0,0.00023287,3]
[329487356,1718389894762,-500.0,0.00023287,3]
[329487357,1718389894773,-500.0,0.00023287,3]
[329487358,1718389894785,-500.0,0.00023287,3]
[329487359,1718389894797,-500.0,0.00023287,3]
[329487360,1718389894810,-500.0,0.00023287,3]
[329487361,1718389894825,-500.0,0.00023287,3]
[329487362,1718389894836,-500.0,0.00023287,3]
[329487363,1718389894869,-500.0,0.00023287,3]
[329487364,1718389894911,-500.0,0.00023287,3]
[329487365,1718389894923,-792.27,0.00023287,3]
[329487366,1718389894956,-500.0,0.00023287,3]
[329487367,1718389894971,-500.0,0.00023287,3]
[329487368,1718389894993,-2726.63,0.00023287,3]
[329487369,1718389895020,-1044.71,0.00023287,3]
[329487370,1718389895043,-210.109676,0.00023287,7]
[329487371,1718389895076,-694.54,0.00023287,3]
[329487372,1718389895088,-537.13,0.00023287,3]
[329487373,1718389895101,-1944.71,0.00023287,3]
[329487374,1718389895112,-500.0,0.00023287,3]
[329487375,1718389895143,-500.0,0.00023287,3]
[329487376,1718389895162,-1028.61,0.00023287,3]
[329487377,1718389895176,-500.0,0.00023287,3]
[329487378,1718389895199,-2311.73,0.00023287,3]
[329487379,1718389895213,-500.0,0.00023287,3]
[329487380,1718389895236,-500.0,0.00023287,3]
[329487381,1718389895253,-1089.25,0.00023287,3]
[329487382,1718389895267,-1607.69,0.00023287,3]
[329487383,1718389895291,-737.12,0.00023287,3]
[329487384,1718389895317,-448.21845157,0.00023287,3]
[329487385,1718389895334,-2332.61,0.00023287,3]
[329487386,1718389895350,-4949.66,0.00023287,3]
[329487387,1718389895363,-232.31278011,0.00023287,3]
[329487388,1718389895382,-267.68721989,0.00023287,3]
[329487389,1718389895393,-7412.39,0.00023287,3]
[329487390,1718389895407,-1264.08,0.00023287,3]
[329487391,1718389895436,-2536.17,0.00023287,3]
[329487392,1718389895451,-500.0,0.00023287,3]
[329487393,1718389895464,-3546.14,0.00023287,3]
[329487394,1718389895474,-4517.60746396,0.00023287,3]
[329487395,1718389895488,-2895.00253604,0.00023287,3]
[329487396,1718389895502,-151.0,0.00023287,7]
[329487397,1718389895517,-5511.69,0.00023287,3]
[329487398,1718389895528,-756.16,0.00023287,3]
[329487399,1718389895547,-1560.64,0.00023287,3]
[329487400,1718389895588,-5585.52,0.00023287,3]
[329487401,1718389895604,-500.0,0.00023287,3]
[329487402,1718389895626,-500.0,0.00023287,3]
[329487403,1718389895640,-500.0,0.00023287,3]